fUSD/lending_fUSD_20250120
["ID","MTS","AMOUNT","RATE_DAILY","PERIOD"]
[349699840,1737383432939,-500.0,0.00019178,2]
[349699842,1737383432948,-500.0,0.00019178,2]
[349699844,1737383432958,-500.0,0.00019178,2]
[349699846,1737383432967,-500.0,0.00019178,2]
[349699848,1737383432980,-500.0,0.00019178,2]
[349699850,1737383432989,-500.0,0.00019178,2]
[349699852,1737383433000,-500.0,0.00019178,2]
[349699854,1737383433009,-500.0,0.00019178,2]
[349699856,1737383433018,-500.0,0.00019178,2]
[349699858,1737383433028,-500.0,0.00019178,2]
[349699860,1737383433038,-500.0,0.00019178,2]
[349699862,1737383433048,-500.0,0.00019178,2]
[349699864,1737383433057,-500.0,0.00019178,2]
[349699866,1737383433067,-523.99,0.00019178,2]
[349699868,1737383433077,-500.0,0.00019178,2]
[349699870,1737383433086,-500.0,0.00019178,2]
[349699872,1737383433096,-500.0,0.00019178,2]
[349699874,1737383433106,-848.39,0.00019178,2]
[349699876,1737383433116,-500.0,0.00019178,2]
[349699878,1737383433126,-647.21,0.00019178,2]
[349699880,1737383433137,-500.0,0.00019178,2]
[349699882,1737383433148,-500.0,0.00019178,2]
[349699884,1737383433158,-500.0,0.00019178,2]
[349699886,1737383433168,-586.02,0.00019178,2]
[349699888,1737383433178,-500.0,0.00019178,2]
[349699890,1737383433189,-536.86,0.00019178,2]
[349699892,1737383433199,-1011.25,0.00019178,2]
[349699894,1737383433209,-595.39,0.00019178,2]
[349699896,1737383433218,-293.0,0.00019212,2]
[349699898,1737383433232,-207.13819137,0.00019252,2]
[349699900,1737383433242,-249.65906452,0.00019252,2]
[349699902,1737383433252,-218.11091749,0.00019252,2]
[349699904,1737383433261,-160.93175303,0.00019252,2]
[349699906,1737383433271,-500.0,0.00019252,2]
[349699908,1737383433281,-500.0,0.00019252,2]
[349699910,1737383433291,-500.0,0.00019252,2]
[349699912,1737383433301,-501.36710502,0.00019252,2]
[349699914,1737383433311,-501.29863588,0.00019252,2]
[349699916,1737383433321,-157.64810534,0.00019252,2]
[349699918,1737383433331,-501.0505928,0.00019252,2]
[349699920,1737383433341,-506.46286156,0.00019252,2]
[349699922,1737383433350,-500.0,0.00019252,2]
[349699924,1737383433360,-444.58165864,0.00019252,2]
[349699926,1737383433369,-660.352,0.00019252,2]
[349699928,1737383433379,-621.10578553,0.00019352,2]
[349699930,1737383433391,-3334.50721447,0.00019352,2]
[349699932,1737383433400,-174.48382984,0.00019352,2]
[349699934,1737383433409,-500.0,0.00019452,2]
[349699936,1737383433419,-500.0,0.00019452,2]
[349699938,1737383433428,-500.0,0.00019452,2]
[349699940,1737383433438,-269.28355553,0.00019452,2]
[349699942,1737383433450,-230.71644447,0.00019452,2]
[349699944,1737383433460,-500.0,0.00019452,2]
[349699946,1737383433469,-500.0,0.00019452,2]
[349699948,1737383433483,-500.0,0.00019452,2]
[349699950,1737383433493,-500.0,0.00019452,2]
[349699952,1737383433503,-500.0,0.00019452,2]
[349699954,1737383433512,-500.0,0.00019452,2]
[349699956,1737383433522,-500.0,0.00019452,2]
[349699958,1737383433531,-500.0,0.00019452,2]
[349699960,1737383433542,-500.0,0.00019452,2]
[349699962,1737383433552,-500.0,0.00019452,2]
[349699964,1737383433561,-157.09035553,0.00019452,2]
[349699978,1737383437802,-467.88599803,0.00019452,2]
[349699979,1737383437812,-70.75914197,0.00019452,2]
[349699980,1737383437832,-429.24085803,0.00019452,2]
[349699981,1737383437844,-500.0,0.00019452,2]
[349699982,1737383437853,-500.0,0.00019452,2]
[349699983,1737383437863,-523.99,0.00019452,2]
[349699984,1737383437872,-474.09847788,0.00019452,2]
[349699985,1737383437883,-500.0,0.00019452,2]
[349699986,1737383437893,-630.13110356,0.00019452,2]
[349700007,1737383439823,-218.25889644,0.00019452,2]
[349700008,1737383439837,-500.0,0.00019452,2]
[349700010,1737383439846,-647.21,0.00019452,2]
[349700012,1737383439856,-500.0,0.00019452,2]
[349700013,1737383439866,-500.0,0.00019452,2]
[349700014,1737383439877,-500.0,0.00019452,2]
[349700015,1737383439887,-586.02,0.00019452,2]
[349700016,1737383439896,-500.0,0.00019452,2]
[349700017,1737383440107,-536.86,0.00019452,2]
[349700018,1737383440117,-1011.25,0.00019452,2]
[349700019,1737383440128,-595.39,0.00019452,2]
[349700020,1737383440138,-201.68651119,0.00019452,2]
[349700021,1737383440147,-152.55691237,0.00019526,2]
[349700022,1737383440160,-347.44308763,0.00019526,2]
[349700023,1737383440169,-2500.0,0.00019625,2]
[349700024,1737383440178,-5000.0,0.00019698,2]
[349700025,1737383440188,-3085.7557,0.000197,2]
[349700026,1737383440197,-180.39,0.00019715,2]
[349700027,1737383440206,-743.27,0.00019724,2]
[349700028,1737383440217,-967.55,0.00019724,2]
[349700029,1737383440228,-500.0,0.00019724,2]
[349700030,1737383440238,-500.0,0.00019724,2]
[349700031,1737383440249,-901.57,0.00019724,2]
[349700032,1737383440259,-500.0,0.00019724,2]
[349700033,1737383440269,-508.63,0.00019724,2]
[349700034,1737383440279,-500.0,0.00019724,2]
[349700035,1737383440290,-500.0,0.00019724,2]
[349700036,1737383440299,-677.62,0.00019724,2]
[349700037,1737383440311,-500.0,0.00019724,2]
[349700038,1737383440321,-514.44893361,0.00019724,2]
[349700039,1737383440331,-589.89,0.00019724,2]
[349700040,1737383440341,-500.0,0.00019724,2]
[349700041,1737383440351,-500.0,0.00019724,2]
[349700042,1737383440361,-1303.79,0.00019724,2]
[349700043,1737383440371,-500.0,0.00019725,2]
[349700044,1737383440381,-500.0,0.00019725,2]
[349700045,1737383440391,-500.0,0.00019725,2]
[349700046,1737383440401,-208.42219996,0.00019725,2]
[349700047,1737383440410,-500.0,0.00019725,2]
[349700048,1737383440420,-500.0,0.00019725,2]
[349700049,1737383440430,-500.0,0.00019725,2]
[349700050,1737383440440,-1086.72,0.00019725,2]
[349700051,1737383440449,-500.0,0.00019725,2]
[349700052,1737383440458,-500.0,0.00019725,2]
[349700053,1737383440468,-500.0,0.00019725,2]
[349700054,1737383440480,-527.51302907,0.00019725,2]
[349700055,1737383440489,-500.0,0.00019725,2]
[349700056,1737383440500,-500.0,0.00019725,2]
[349700057,1737383440510,-500.0,0.00019725,2]
[349700058,1737383440520,-500.0,0.00019725,2]
[349700059,1737383440529,-500.0,0.00019725,2]
[349700060,1737383440539,-500.0,0.00019725,2]
[349700061,1737383440548,-500.0,0.00019725,2]
[349700062,1737383440557,-500.0,0.00019725,2]
[349700063,1737383440567,-500.0,0.00019725,2]
[349700065,1737383440578,-500.0,0.00019725,2]
[349700066,1737383440588,-500.0,0.00019725,2]
[349700067,1737383440598,-500.0,0.00019725,2]
[349700068,1737383440608,-500.0,0.00019725,2]
[349700069,1737383440618,-500.0,0.00019725,2]
[349700070,1737383440627,-500.0,0.00019725,2]
[349700071,1737383440637,-500.0,0.00019725,2]
[349700072,1737383440646,-500.0,0.00019725,2]
[349700073,1737383440655,-500.0,0.00019725,2]
[349700074,1737383440664,-500.0,0.00019725,2]
[349700075,1737383440673,-500.0,0.00019725,2]
[349700076,1737383440682,-500.0,0.00019725,2]
[349700077,1737383440691,-500.0,0.00019725,2]
[349700078,1737383440701,-500.0,0.00019725,2]
[349700079,1737383440710,-500.0,0.00019725,2]
[349700080,1737383440720,-500.0,0.00019725,2]
[349700081,1737383440734,-500.0,0.00019725,2]
[349700082,1737383440743,-545.72,0.00019725,2]
[349700083,1737383440752,-569.91,0.00019725,2]
[349700084,1737383440762,-500.0,0.00019725,2]
[349700085,1737383440771,-500.0,0.00019725,2]
[349700086,1737383440781,-500.0,0.00019725,2]
[349700087,1737383440790,-626.47,0.00019725,2]
[349700088,1737383440800,-562.62,0.00019725,2]
[349700089,1737383440810,-509.6,0.00019725,2]
[349700090,1737383440824,-500.0,0.00019725,2]
[349700091,1737383440833,-500.0,0.00019725,2]
[349700092,1737383440843,-611.47956126,0.00019725,2]
[349700093,1737383440852,-500.0,0.00019725,2]
[349700094,1737383440862,-563.13,0.00019725,2]
[349700095,1737383440872,-500.0,0.00019725,2]
[349700096,1737383440882,-530.03,0.00019725,2]
[349700097,1737383440892,-500.0,0.00019725,2]
[349700098,1737383440902,-500.0,0.00019725,2]
[349700099,1737383440911,-806.27,0.00019725,2]
[349700100,1737383440921,-875.35,0.00019725,2]
[349700101,1737383440930,-950.29,0.00019725,2]
[349700102,1737383440941,-968.65,0.00019725,2]
[349700103,1737383440951,-1779.93,0.00019725,2]
[349700104,1737383440959,-500.0,0.00019725,2]
[349700105,1737383440968,-978.6,0.00019725,2]
[349700106,1737383440980,-1379.51,0.00019725,2]
[349700107,1737383440990,-500.0,0.00019725,2]
[349700108,1737383441000,-641.11,0.00019725,2]
[349700109,1737383441010,-500.0,0.00019725,2]
[349700110,1737383441019,-883.6,0.00019725,2]
[349700111,1737383441029,-500.0,0.00019725,2]
[349700112,1737383441038,-962.47,0.00019725,2]
[349700113,1737383441048,-500.0,0.00019725,2]
[349700114,1737383441057,-500.0,0.00019725,2]
[349700115,1737383441066,-500.0,0.00019725,2]
[349700116,1737383441075,-761.75,0.00019725,2]
[349700117,1737383441085,-500.0,0.00019725,2]
[349700118,1737383441094,-500.0,0.00019725,2]
[349700119,1737383441104,-519.96,0.00019725,2]
[349700120,1737383441113,-500.0,0.00019725,2]
[349700121,1737383441122,-500.0,0.00019725,2]
[349700122,1737383441131,-500.0,0.00019725,2]
[349700123,1737383441141,-645.51,0.00019725,2]
[349700124,1737383441150,-743.86,0.00019725,2]
[349700125,1737383441160,-500.0,0.00019725,2]
[349700126,1737383441169,-500.0,0.00019725,2]
[349700127,1737383441180,-500.0,0.00019725,2]
[349700128,1737383441189,-551.73,0.00019725,2]
[349700129,1737383441199,-500.0,0.00019725,2]
[349700130,1737383441209,-2346.85,0.00019725,2]
[349700131,1737383441218,-522.45,0.00019725,2]
[349700132,1737383441232,-500.0,0.00019725,2]
[349700133,1737383441242,-571.97,0.00019725,2]
[349700134,1737383441252,-616.04119385,0.00019725,2]
[349700135,1737383441262,-500.0,0.00019725,2]
[349700136,1737383441271,-520.5,0.00019725,2]
[349700137,1737383441282,-607.55,0.00019725,2]
[349700138,1737383441291,-500.0,0.00019725,2]
[349700139,1737383441302,-500.0,0.00019725,2]
[349700140,1737383441312,-500.0,0.00019725,2]
[349700141,1737383441322,-500.0,0.00019725,2]
[349700142,1737383441333,-500.0,0.00019725,2]
[349700143,1737383441342,-714.34,0.00019725,2]
[349700144,1737383441352,-881.4,0.00019725,2]
[349700145,1737383441361,-500.0,0.00019725,2]
[349700146,1737383441371,-500.0,0.00019725,2]
[349700147,1737383441380,-500.0,0.00019725,2]
[349700148,1737383441390,-662.69,0.00019725,2]
[349700149,1737383441400,-651.19,0.00019725,2]
[349700150,1737383441410,-500.0,0.00019725,2]
[349700151,1737383441419,-500.0,0.00019725,2]
[349700152,1737383441429,-522.32,0.00019725,2]
[349700153,1737383441439,-500.0,0.00019725,2]
[349700154,1737383441449,-500.0,0.00019725,2]
[349700155,1737383441458,-500.0,0.00019725,2]
[349700156,1737383441468,-162.93320844,0.00019725,2]
[349700157,1737383441481,-1372.41,0.00019725,2]
[349700158,1737383441490,-1728.81,0.00019725,2]
[349700159,1737383441500,-3023.58,0.00019725,2]
[349700160,1737383441510,-500.0,0.00019725,2]
[349700161,1737383441519,-548.66,0.00019725,2]
[349700162,1737383441529,-500.0,0.00019725,2]
[349700163,1737383441538,-500.0,0.00019725,2]
[349700164,1737383441548,-500.0,0.00019725,2]
[349700165,1737383441558,-500.0,0.00019725,2]
[349700166,1737383441568,-2078.39,0.00019725,2]
[349700167,1737383441577,-550.04,0.00019725,2]
[349700168,1737383441586,-787.25,0.00019725,2]
[349700169,1737383441595,-500.0,0.00019725,2]
[349700170,1737383441604,-1835.65,0.00019725,2]
[349700171,1737383441614,-500.0,0.00019725,2]
[349700172,1737383441623,-500.0,0.00019726,2]
[349700173,1737383441633,-500.0,0.00019726,2]
[349700174,1737383441642,-500.0,0.00019726,2]
[349700175,1737383441651,-500.0,0.00019726,2]
[349700176,1737383441661,-500.0,0.00019726,2]
[349700177,1737383441670,-500.0,0.00019726,2]
[349700178,1737383441680,-500.0,0.00019726,2]
[349700179,1737383441690,-500.0,0.00019726,2]
[349700180,1737383441699,-500.0,0.00019726,2]
[349700181,1737383441709,-334.41308618,0.00019726,2]
[349700182,1737383441949,-500.0,0.00019725,2]
[349700183,1737383441960,-165.58691382,0.00019726,2]
[349700184,1737383441969,-500.0,0.00019726,2]
[349700185,1737383441983,-500.0,0.00019726,2]
[349700186,1737383441993,-500.0,0.00019726,2]
[349700187,1737383442002,-500.0,0.00019726,2]
[349700188,1737383442014,-500.0,0.00019726,2]
[349700189,1737383442023,-500.0,0.00019726,2]
[349700190,1737383442032,-523.99,0.00019726,2]
[349700191,1737383442046,-500.0,0.00019726,2]
[349700192,1737383442055,-848.39,0.00019726,2]
[349700193,1737383442065,-500.0,0.00019726,2]
[349700194,1737383442074,-203.40663618,0.00019726,2]
[349700195,1737383442085,-257.89,0.00019726,2]
[349700196,1737383442100,-185.91336382,0.00019726,2]
[349700197,1737383442110,-232.58539618,0.00019726,2]
[349700198,1737383442122,-267.41460382,0.00019726,2]
[349700199,1737383442132,-500.0,0.00019726,2]
[349700200,1737383442142,-500.0,0.00019726,2]
[349700201,1737383442152,-586.02,0.00019726,2]
[349700202,1737383442162,-500.0,0.00019726,2]
[349700203,1737383442172,-536.86,0.00019726,2]
[349700204,1737383442182,-888.65539618,0.00019726,2]
[349700205,1737383442219,-122.59460382,0.00019726,2]
[349700206,1737383442231,-295.09539617,0.00019726,2]
[349700207,1737383442242,-263.02001885,0.00019726,2]
[349700209,1737383442792,-500.0,0.00019724,2]
[349700210,1737383442802,-366.42225614,0.00019725,2]
[349700211,1737383442938,-133.57774386,0.00019725,2]
[349700212,1737383442948,-500.0,0.00019725,2]
[349700213,1737383442957,-37.27458498,0.00019726,2]
[349700214,1737383442966,-500.0,0.00019797,2]
[349700215,1737383442976,-514.39,0.00019797,2]
[349700216,1737383442987,-961.9,0.00019797,2]
[349700217,1737383442996,-543.051879,0.00019797,2]
[349700218,1737383443005,-500.0,0.00019797,2]
[349700219,1737383443015,-158.137982,0.00019797,2]
[349700221,1737383443024,-500.0,0.00019797,2]
[349700223,1737383443034,-800.76,0.00019797,2]
[349700224,1737383443044,-1376.43,0.00019797,2]
[349700225,1737383443054,-500.0,0.00019797,2]
[349700226,1737383443063,-587.87,0.00019797,2]
[349700227,1737383443073,-500.0,0.00019797,2]
[349700228,1737383443083,-500.0,0.00019797,2]
[349700229,1737383443093,-500.0,0.00019797,2]
[349700230,1737383443104,-500.0,0.00019797,2]
[349700231,1737383443113,-701.67,0.00019797,2]
[349700232,1737383443123,-181.017294,0.00019797,2]
[349700233,1737383443132,-1177.66,0.00019797,2]
[349700234,1737383443142,-1051.8,0.00019797,2]
[349700235,1737383443151,-483.96051616,0.00019797,2]
[349700236,1737383443167,-16.03948384,0.00019797,2]
[349700237,1737383443175,-965.92744871,0.00019797,2]
[349700238,1737383445803,-500.0,0.00019724,2]
[349700239,1737383445813,-211.04255129,0.00019797,2]
[349700240,1737383445826,-1283.84,0.00019797,2]
[349700241,1737383445837,-500.0,0.00019797,2]
[349700242,1737383445847,-770.36,0.00019797,2]
[349700243,1737383445856,-1580.42,0.00019797,2]
[349700244,1737383445866,-500.0,0.00019797,2]
[349700245,1737383445876,-655.78,0.00019797,2]
[349700246,1737383445886,-1060.52,0.00019797,2]
[349700247,1737383445896,-724.7,0.00019797,2]
[349700248,1737383445906,-583.21,0.00019797,2]
[349700249,1737383445917,-1088.91,0.00019797,2]
[349700250,1737383445927,-532.33,0.00019797,2]
[349700251,1737383445937,-500.0,0.00019797,2]
[349700252,1737383445946,-719.7,0.00019797,2]
[349700253,1737383445956,-1333.48,0.00019797,2]
[349700254,1737383445967,-500.0,0.00019798,2]
[349700255,1737383445976,-500.0,0.00019798,2]
[349700256,1737383445989,-202.56868434,0.00019798,2]
[349700257,1737383445998,-500.0,0.00019798,2]
[349700258,1737383446008,-500.0,0.00019798,2]
[349700259,1737383446018,-500.0,0.00019798,2]
[349700260,1737383446027,-500.0,0.00019798,2]
[349700261,1737383446036,-500.0,0.00019798,2]
[349700262,1737383446046,-500.0,0.00019798,2]
[349700263,1737383446056,-500.0,0.00019798,2]
[349700264,1737383446065,-713.92,0.00019798,2]
[349700265,1737383446074,-1307.7,0.00019798,2]
[349700266,1737383446083,-500.0,0.00019798,2]
[349700267,1737383446093,-500.0,0.00019798,2]
[349700268,1737383446103,-500.0,0.00019798,2]
[349700269,1737383446111,-1000.0,0.00019798,2]
[349700270,1737383446120,-500.0,0.00019798,2]
[349700271,1737383446130,-1361.29,0.00019798,2]
[349700272,1737383446140,-500.0,0.00019798,2]
[349700273,1737383446149,-1717.38,0.00019798,2]
[349700275,1737383446159,-1776.8,0.00019798,2]
[349700276,1737383446169,-500.0,0.00019798,2]
[349700278,1737383446179,-500.0,0.00019798,2]
[349700280,1737383446189,-500.0,0.00019798,2]
[349700282,1737383446198,-500.0,0.00019798,2]
[349700283,1737383446208,-500.0,0.00019798,2]
[349700285,1737383446218,-500.0,0.00019798,2]
[349700286,1737383446227,-500.0,0.00019798,2]
[349700287,1737383446243,-500.0,0.00019798,2]
[349700288,1737383446253,-500.0,0.000198,2]
[349700289,1737383446263,-1328.13698467,0.00019899,2]
[349700290,1737383446273,-203.83175826,0.000199,2]
[349700291,1737383446282,-473.92486827,0.00019971,2]
[349700292,1737383446291,-180.39,0.00019989,2]
[349700293,1737383446300,-743.27,0.00019998,2]
[349700294,1737383446311,-967.55,0.00019998,2]
[349700295,1737383446322,-500.0,0.00019998,2]
[349700296,1737383446332,-500.0,0.00019998,2]
[349700297,1737383446341,-901.57,0.00019998,2]
[349700298,1737383446352,-500.0,0.00019998,2]
[349700299,1737383446361,-508.63,0.00019998,2]
[349700300,1737383446371,-500.0,0.00019998,2]
[349700301,1737383446381,-677.62,0.00019998,2]
[349700302,1737383446391,-589.89,0.00019998,2]
[349700303,1737383446402,-500.0,0.00019998,2]
[349700304,1737383446412,-500.0,0.00019998,2]
[349700305,1737383446630,-1303.79,0.00019998,2]
[349700306,1737383446640,-500.0,0.00019998,2]
[349700307,1737383446650,-500.0,0.00019999,2]
[349700308,1737383446660,-500.0,0.00019999,2]
[349700309,1737383446670,-1086.72,0.00019999,2]
[349700310,1737383446681,-500.0,0.00019999,2]
[349700311,1737383446691,-500.0,0.00019999,2]
[349700312,1737383446701,-500.0,0.00019999,2]
[349700313,1737383446710,-500.0,0.00019999,2]
[349700314,1737383446720,-500.0,0.00019999,2]
[349700315,1737383446729,-500.0,0.00019999,2]
[349700316,1737383446739,-500.0,0.00019999,2]
[349700317,1737383446748,-500.0,0.00019999,2]
[349700318,1737383446758,-500.0,0.00019999,2]
[349700319,1737383446768,-500.0,0.00019999,2]
[349700320,1737383446777,-500.0,0.00019999,2]
[349700321,1737383446787,-500.0,0.00019999,2]
[349700322,1737383446797,-500.0,0.00019999,2]
[349700323,1737383446807,-500.0,0.00019999,2]
[349700324,1737383446816,-545.72,0.00019999,2]
[349700325,1737383446826,-569.91,0.00019999,2]
[349700326,1737383446840,-500.0,0.00019999,2]
[349700327,1737383446850,-500.0,0.00019999,2]
[349700328,1737383446860,-626.47,0.00019999,2]
[349700329,1737383446870,-562.62,0.00019999,2]
[349700330,1737383446881,-509.6,0.00019999,2]
[349700331,1737383446891,-500.0,0.00019999,2]
[349700332,1737383446900,-500.0,0.00019999,2]
[349700333,1737383446911,-500.0,0.00019999,2]
[349700334,1737383446921,-563.13,0.00019999,2]
[349700335,1737383446930,-500.0,0.00019999,2]
[349700336,1737383446939,-530.03,0.00019999,2]
[349700337,1737383446948,-190.83783618,0.00019999,2]
[349700338,1737383446957,-806.27,0.00019999,2]
[349700339,1737383446966,-875.35,0.00019999,2]
[349700340,1737383446976,-950.29,0.00019999,2]
[349700341,1737383446986,-968.65,0.00019999,2]
[349700342,1737383446995,-1779.93,0.00019999,2]
[349700343,1737383447004,-500.0,0.00019999,2]
[349700344,1737383447014,-978.6,0.00019999,2]
[349700345,1737383447023,-1379.51,0.00019999,2]
[349700346,1737383447032,-500.0,0.00019999,2]
[349700347,1737383447042,-641.11,0.00019999,2]
[349700348,1737383447052,-883.6,0.00019999,2]
[349700349,1737383447062,-962.47,0.00019999,2]
[349700350,1737383447072,-500.0,0.00019999,2]
[349700351,1737383447081,-500.0,0.00019999,2]
[349700352,1737383447091,-761.75,0.00019999,2]
[349700353,1737383447101,-500.0,0.00019999,2]
[349700354,1737383447111,-519.96,0.00019999,2]
[349700355,1737383447121,-500.0,0.00019999,2]
[349700356,1737383447131,-500.0,0.00019999,2]
[349700357,1737383447141,-500.0,0.00019999,2]
[349700358,1737383447151,-743.86,0.00019999,2]
[349700359,1737383447161,-500.0,0.00019999,2]
[349700360,1737383447171,-500.0,0.00019999,2]
[349700361,1737383447180,-500.0,0.00019999,2]
[349700362,1737383447190,-551.73,0.00019999,2]
[349700363,1737383447199,-500.0,0.00019999,2]
[349700364,1737383447209,-2346.85,0.00019999,2]
[349700365,1737383447219,-522.45,0.00019999,2]
[349700366,1737383447228,-500.0,0.00019999,2]
[349700367,1737383447240,-571.97,0.00019999,2]
[349700368,1737383447250,-500.0,0.00019999,2]
[349700369,1737383447260,-607.55,0.00019999,2]
[349700370,1737383447270,-500.0,0.00019999,2]
[349700371,1737383447280,-500.0,0.00019999,2]
[349700372,1737383447290,-500.0,0.00019999,2]
[349700373,1737383447300,-500.0,0.00019999,2]
[349700374,1737383447310,-500.0,0.00019999,2]
[349700375,1737383447319,-714.34,0.00019999,2]
[349700376,1737383447329,-881.4,0.00019999,2]
[349700377,1737383447340,-500.0,0.00019999,2]
[349700378,1737383447350,-500.0,0.00019999,2]
[349700379,1737383447360,-500.0,0.00019999,2]
[349700380,1737383447370,-662.69,0.00019999,2]
[349700381,1737383447380,-651.19,0.00019999,2]
[349700382,1737383447390,-500.0,0.00019999,2]
[349700383,1737383447400,-500.0,0.00019999,2]
[349700384,1737383447409,-522.32,0.00019999,2]
[349700385,1737383447420,-500.0,0.00019999,2]
[349700386,1737383447429,-500.0,0.00019999,2]
[349700387,1737383447438,-1372.41,0.00019999,2]
[349700388,1737383447449,-1728.81,0.00019999,2]
[349700389,1737383447458,-3023.58,0.00019999,2]
[349700390,1737383447467,-500.0,0.00019999,2]
[349700391,1737383447477,-548.66,0.00019999,2]
[349700392,1737383447488,-500.0,0.00019999,2]
[349700393,1737383447497,-500.0,0.00019999,2]
[349700394,1737383447506,-500.0,0.00019999,2]
[349700395,1737383447516,-2078.39,0.00019999,2]
[349700396,1737383447525,-550.04,0.00019999,2]
[349700397,1737383447535,-787.25,0.00019999,2]
[349700398,1737383447545,-500.0,0.00019999,2]
[349700399,1737383447554,-1835.65,0.00019999,2]
[349700400,1737383447564,-500.0,0.00019999,2]
[349700401,1737383447574,-500.0,0.00019999,2]
[349700402,1737383447583,-613.12,0.00019999,2]
[349700403,1737383447592,-160.126,0.0002,2]
[349700404,1737383447601,-500.0,0.0002,2]
[349700405,1737383447612,-531.1275688,0.0002,2]
[349700406,1737383447621,-500.0,0.0002,2]
[349700407,1737383447630,-500.0,0.0002,2]
[349700408,1737383447640,-500.0,0.0002,2]
[349700409,1737383447650,-500.0,0.0002,2]
[349700410,1737383447660,-584.78959164,0.0002,2]
[349700411,1737383447669,-500.0,0.0002,2]
[349700412,1737383447679,-436.7768059,0.0002,2]
[349700413,1737383447689,-500.0,0.0002,2]
[349700414,1737383447699,-435.25982799,0.0002,2]
[349700415,1737383447708,-500.0,0.0002,2]
[349700416,1737383447717,-500.0,0.0002,2]
[349700417,1737383447726,-500.0,0.0002,2]
[349700418,1737383447737,-500.0,0.0002,2]
[349700419,1737383447747,-523.99,0.0002,2]
[349700420,1737383447756,-497.76071645,0.0002,2]
[349700421,1737383447766,-848.39,0.0002,2]
[349700422,1737383447775,-500.0,0.0002,2]
[349700423,1737383447784,-647.21,0.0002,2]
[349700424,1737383447794,-500.0,0.0002,2]
[349700425,1737383447803,-500.0,0.0002,2]
[349700426,1737383447816,-500.0,0.0002,2]
[349700427,1737383447828,-586.02,0.0002,2]
[349700428,1737383447837,-500.0,0.0002,2]
[349700429,1737383447847,-536.86,0.0002,2]
[349700430,1737383447856,-1011.25,0.0002,2]
[349700431,1737383447867,-595.39,0.0002,2]
[349700432,1737383447877,-61049.58289552,0.0002,4]
[349700433,1737383447886,-500.0,0.00020071,2]
[349700434,1737383447895,-514.39,0.00020071,2]
[349700435,1737383447904,-961.9,0.00020071,2]
[349700436,1737383447916,-543.051879,0.00020071,2]
[349700437,1737383447925,-500.0,0.00020071,2]
[349700438,1737383447938,-500.0,0.00020071,2]
[349700439,1737383447948,-800.76,0.00020071,2]
[349700440,1737383447957,-1376.43,0.00020071,2]
[349700441,1737383447966,-500.0,0.00020071,2]
[349700442,1737383447976,-587.87,0.00020071,2]
[349700443,1737383447987,-500.0,0.00020071,2]
[349700444,1737383447998,-500.0,0.00020071,2]
[349700445,1737383448008,-500.0,0.00020071,2]